fUSD/lending_fUSD_20260628
["ID","MTS","AMOUNT","RATE_DAILY","PERIOD"]
[426542928,1782574246000,-714.48400127,0.00026479,2]
[426542901,1782574246000,-4801.0,0.00026012,3]
[426542924,1782574246000,-397.77496499,0.00026479,2]
[426542923,1782574246000,-326.37630533,0.00026479,2]
[426542926,1782574246000,-678.11654964,0.00026479,2]
[426542930,1782574246000,-743.57603648,0.00026479,2]
[426542933,1782574246000,-382.02139764,0.00026479,2]
[426542941,1782574246000,-232.50918327,0.0002679,2]
[426542931,1782574246000,-481.83470809,0.00026479,2]
[426542925,1782574246000,-620.40439051,0.00026479,2]
[426542929,1782574246000,-384.86010138,0.00026479,2]
[426542934,1782574246000,-439.13851,0.0002653,2]
[426542935,1782574246000,-439.13851,0.0002653,2]
[426542936,1782574246000,-439.13851,0.0002653,2]
[426542939,1782574246000,-200.0,0.00026585,2]
[426542937,1782574246000,-1285.13,0.00026552,7]
[426542938,1782574246000,-484.06350778,0.00026556,2]
[426542944,1782574246000,-300.0,0.00026799,10]
[426542942,1782574246000,-151.0,0.00026797,7]
[426542943,1782574246000,-1072.57038614,0.00026799,10]
[426542932,1782574246000,-181.93999159,0.00026479,2]
[426542922,1782574246000,-693.58327079,0.00026479,2]
[426542927,1782574246000,-646.92764876,0.00026479,2]
[426542921,1782574246000,-280.98765558,0.00026479,2]
[426542899,1782574246000,-27550.84848882,0.00026,10]
[426542898,1782574246000,-4616.40576299,0.00026,2]
[426542902,1782574246000,-2000.0,0.000261,2]
[426542904,1782574246000,-154.03,0.00026244,30]
[426542903,1782574246000,-446.54539642,0.000262,2]
[426542905,1782574246000,-154.06,0.00026244,30]
[426542918,1782574246000,-185.92189788,0.00026479,2]
[426542916,1782574246000,-574.31995551,0.00026474,2]
[426542913,1782574246000,-206.47536041,0.00026474,2]
[426542915,1782574246000,-166.59011589,0.00026474,2]
[426542912,1782574246000,-365.43526887,0.00026474,2]
[426542914,1782574246000,-473.75462406,0.00026474,2]
[426542906,1782574246000,-153.98,0.00026244,30]
[426542920,1782574246000,-707.53937459,0.00026479,2]
[426542910,1782574246000,-422.11257627,0.00026474,2]
[426542909,1782574246000,-315.89048838,0.00026474,2]
[426542919,1782574246000,-721.96446485,0.00026479,2]
[426542911,1782574246000,-170.06455975,0.00026474,2]
[426542907,1782574246000,-20209.29773686,0.000264,2]
[426542917,1782574246000,-413.00115397,0.00026474,2]
[426542908,1782574246000,-401.61660046,0.00026474,2]
[426542951,1782574247000,-9823.71904475,0.000268,2]
[426542946,1782574247000,-666.0,0.00026799,2]
[426542948,1782574247000,-300.0,0.00026799,10]
[426542947,1782574247000,-666.0,0.00026799,2]
[426542945,1782574247000,-300.0,0.00026799,10]
[426542949,1782574247000,-841345.24446686,0.000268,2]
[426542950,1782574247000,-5739.60332467,0.000268,2]
[426542952,1782574247000,-4668.9163163,0.000268,2]
[426542958,1782574247000,-695.55,0.000268,2]
[426542957,1782574247000,-4687.75324602,0.000268,2]
[426542964,1782574247000,-60145.7719029,0.000268,2]
[426542961,1782574247000,-21275.14276854,0.000268,2]
[426542960,1782574247000,-1400.0,0.000268,2]
[426542955,1782574247000,-2358.72714298,0.000268,2]
[426542963,1782574247000,-135419.83137179,0.000268,2]
[426542956,1782574247000,-2439.56336415,0.000268,2]
[426542959,1782574247000,-14088.57224114,0.000268,2]
[426542966,1782574307000,300.814501,0.00028622,120]
[426542969,1782574343000,525.95544967,0.00037351,120]
[426542970,1782574403000,170.66,0.00027678,120]
[426542971,1782574432000,500.0,0.00037351,120]
[426542972,1782574462000,500.0,0.00037351,120]
[426542975,1782574463000,500.0,0.00037351,120]
[426542974,1782574463000,500.0,0.00037351,120]
[426542973,1782574463000,500.0,0.00037351,120]
[426542978,1782574464000,221.39756612,0.00037351,120]
[426542977,1782574464000,500.0,0.00037351,120]
[426542976,1782574464000,500.0,0.00037351,120]
[426542979,1782574640000,463.79,0.0002799,120]
[426542980,1782574641000,5014.68461505,0.00037351,120]
[426542981,1782574829000,163.16,0.00037348,120]
[426542984,1782574863000,501.46754322,0.00030136,120]
[426542985,1782574962000,179.36931731,0.00012056,7]
[426542986,1782575030000,507.23671387,0.00030136,120]
[426542987,1782575125000,500.0,0.00037348,120]
[426542990,1782575126000,500.0,0.00037348,120]
[426542989,1782575126000,500.0,0.00037348,120]
[426542988,1782575126000,500.0,0.00037348,120]
[426542992,1782575127000,500.0,0.00037348,120]
[426542991,1782575127000,500.0,0.00037348,120]
[426542993,1782575128000,500.0,0.00037348,120]
[426542994,1782575128000,500.0,0.00037348,120]
[426542995,1782575128000,500.0,0.00037348,120]
[426542998,1782575129000,500.0,0.00037348,120]
[426542997,1782575129000,500.0,0.00037348,120]
[426542996,1782575129000,500.0,0.00037348,120]
[426543000,1782575130000,500.0,0.00037348,120]
[426542999,1782575130000,500.0,0.00037348,120]
[426543001,1782575131000,513.57215,0.00037348,120]
[426543002,1782575142000,179.36931728,0.00012056,7]
[426543003,1782575370000,1145.0,0.00011874,2]
[426543007,1782575432000,-355.42,0.00012056,2]
[426543028,1782575432000,-502.60284518,0.0001249,2]
[426543022,1782575432000,-500.0,0.0001249,2]
[426543037,1782575432000,-706.88961498,0.0001249,2]
[426543033,1782575432000,-706.88961498,0.0001249,2]
[426543032,1782575432000,-706.88961498,0.0001249,2]
[426543035,1782575432000,-706.88961498,0.0001249,2]
[426543036,1782575432000,-706.88961498,0.0001249,2]
[426543027,1782575432000,-706.88961498,0.0001249,2]
[426543031,1782575432000,-645.96520007,0.0001249,2]
[426543039,1782575432000,-706.88961498,0.0001249,2]
[426543030,1782575432000,-706.88961498,0.0001249,2]
[426543040,1782575432000,-706.88961498,0.0001249,2]
[426543041,1782575432000,-706.88961498,0.0001249,2]
[426543058,1782575432000,-706.88961498,0.0001249,2]
[426543059,1782575432000,-706.88961498,0.0001249,2]
[426543056,1782575432000,-706.88961498,0.0001249,2]
[426543038,1782575432000,-706.88961498,0.0001249,2]
[426543055,1782575432000,-706.88961498,0.0001249,2]
[426543018,1782575432000,-500.0,0.0001249,2]
[426543021,1782575432000,-218.43619622,0.0001249,2]
[426543008,1782575432000,-167.86,0.00012168,2]
[426543009,1782575432000,-432.60505399,0.00012432,2]
[426543010,1782575432000,-39.07774302,0.00012432,2]
[426543011,1782575432000,-691.17219582,0.00012432,2]
[426543013,1782575432000,-295.97046684,0.00012481,2]
[426543014,1782575432000,-1067.71,0.00012485,2]
[426543015,1782575432000,-167.86,0.00012488,2]
[426543025,1782575432000,-621.60388549,0.0001249,2]
[426543012,1782575432000,-16663.14122325,0.00012432,2]
[426543017,1782575432000,-323.17017315,0.0001249,2]
[426543020,1782575432000,-500.0,0.0001249,2]
[426543023,1782575432000,-500.0,0.0001249,2]
[426543029,1782575432000,-573.57285321,0.0001249,2]
[426543024,1782575432000,-500.0,0.0001249,2]
[426543019,1782575432000,-225.41551451,0.0001249,2]
[426543026,1782575432000,-500.0,0.0001249,2]
[426543016,1782575432000,-445.54265778,0.0001249,2]
[426543057,1782575432000,-706.88961498,0.0001249,2]
[426543034,1782575432000,-706.88961498,0.0001249,2]
[426543043,1782575432000,-706.88961498,0.0001249,2]
[426543074,1782575432000,-706.88961498,0.0001249,2]
[426543078,1782575432000,-706.88961498,0.0001249,2]
[426543076,1782575432000,-706.88961498,0.0001249,2]
[426543075,1782575432000,-706.88961498,0.0001249,2]
[426543077,1782575432000,-706.88961498,0.0001249,2]
[426543080,1782575432000,-706.88961498,0.0001249,2]
[426543082,1782575432000,-706.88961498,0.0001249,2]
[426543085,1782575432000,-706.88961498,0.0001249,2]
[426543088,1782575432000,-706.88961498,0.0001249,2]
[426543089,1782575432000,-706.88961498,0.0001249,2]
[426543090,1782575432000,-706.88961498,0.0001249,2]
[426543086,1782575432000,-706.88961498,0.0001249,2]
[426543091,1782575432000,-706.88961498,0.0001249,2]
[426543087,1782575432000,-706.88961498,0.0001249,2]
[426543093,1782575432000,-690.73213808,0.0001249,2]
[426543092,1782575432000,-706.88961498,0.0001249,2]
[426543047,1782575432000,-706.88961498,0.0001249,2]
[426543079,1782575432000,-706.88961498,0.0001249,2]
[426543083,1782575432000,-706.88961498,0.0001249,2]
[426543081,1782575432000,-706.88961498,0.0001249,2]
[426543072,1782575432000,-706.88961498,0.0001249,2]
[426543073,1782575432000,-706.88961498,0.0001249,2]
[426543049,1782575432000,-706.88961498,0.0001249,2]
[426543060,1782575432000,-706.88961498,0.0001249,2]
[426543053,1782575432000,-706.88961498,0.0001249,2]
[426543051,1782575432000,-706.88961498,0.0001249,2]
[426543066,1782575432000,-706.88961498,0.0001249,2]
[426543071,1782575432000,-706.88961498,0.0001249,2]
[426543061,1782575432000,-706.88961498,0.0001249,2]
[426543065,1782575432000,-706.88961498,0.0001249,2]
[426543094,1782575432000,-690.73213808,0.0001249,2]
[426543084,1782575432000,-706.88961498,0.0001249,2]
[426543068,1782575432000,-706.88961498,0.0001249,2]
[426543064,1782575432000,-706.88961498,0.0001249,2]
[426543062,1782575432000,-706.88961498,0.0001249,2]
[426543069,1782575432000,-706.88961498,0.0001249,2]
[426543045,1782575432000,-706.88961498,0.0001249,2]
[426543067,1782575432000,-706.88961498,0.0001249,2]
[426543070,1782575432000,-706.88961498,0.0001249,2]
[426543063,1782575432000,-706.88961498,0.0001249,2]
[426543103,1782575433000,-690.73213808,0.0001249,2]
[426543107,1782575433000,-690.73213808,0.0001249,2]
[426543108,1782575433000,-690.73213808,0.0001249,2]
[426543109,1782575433000,-690.73213808,0.0001249,2]
[426543105,1782575433000,-690.73213808,0.0001249,2]
[426543116,1782575433000,-690.73213808,0.0001249,2]
[426543106,1782575433000,-690.73213808,0.0001249,2]
[426543115,1782575433000,-690.73213808,0.0001249,2]
[426543095,1782575433000,-690.73213808,0.0001249,2]
[426543101,1782575433000,-690.73213808,0.0001249,2]
[426543102,1782575433000,-690.73213808,0.0001249,2]
[426543099,1782575433000,-690.73213808,0.0001249,2]
[426543100,1782575433000,-690.73213808,0.0001249,2]
[426543098,1782575433000,-690.73213808,0.0001249,2]
[426543096,1782575433000,-690.73213808,0.0001249,2]
[426543097,1782575433000,-690.73213808,0.0001249,2]
[426543112,1782575433000,-690.73213808,0.0001249,2]
[426543104,1782575433000,-690.73213808,0.0001249,2]
[426543111,1782575433000,-690.73213808,0.0001249,2]
[426543126,1782575433000,-690.73213806,0.0001249,2]
[426543113,1782575433000,-690.73213808,0.0001249,2]
[426543110,1782575433000,-690.73213808,0.0001249,2]
[426543133,1782575433000,-27328.72381936,0.00012491,2]
[426543131,1782575433000,-548.73,0.00012491,2]
[426543132,1782575433000,-15124.17238937,0.00012491,2]
[426543129,1782575433000,-163.83,0.0001249,2]
[426543127,1782575433000,-690.73213806,0.0001249,2]
[426543123,1782575433000,-690.73213808,0.0001249,2]
[426543124,1782575433000,-690.73213806,0.0001249,2]
[426543130,1782575433000,-80853.2447066,0.00012491,2]
[426543125,1782575433000,-690.73213806,0.0001249,2]
[426543122,1782575433000,-690.73213808,0.0001249,2]
[426543117,1782575433000,-690.73213808,0.0001249,2]
[426543120,1782575433000,-690.73213808,0.0001249,2]
[426543121,1782575433000,-690.73213808,0.0001249,2]
[426543114,1782575433000,-690.73213808,0.0001249,2]
[426543128,1782575433000,-150.0,0.0001249,2]
[426543118,1782575433000,-690.73213808,0.0001249,2]
[426543119,1782575433000,-690.73213808,0.0001249,2]
[426543145,1782575438000,-1000.0,0.00012591,2]
[426543158,1782575438000,-167.86,0.00013128,2]
[426543151,1782575438000,-1067.71,0.00012797,2]
[426543157,1782575438000,-1067.71,0.00013109,2]
[426543153,1782575438000,-167.86,0.00012808,2]
[426543150,1782575438000,-2000.0,0.00012693,2]
[426543156,1782575438000,-160.0,0.00013109,2]
[426543146,1782575438000,-3571.69862661,0.00012593,2]
[426543137,1782575438000,-238.55898369,0.00012432,2]
[426543147,1782575438000,-1072.57038613,0.00012691,3]
[426543141,1782575438000,-3181.63,0.00012582,2]
[426543143,1782575438000,-34379.342,0.00012591,2]
[426543140,1782575438000,-168.85,0.00012532,2]
[426543142,1782575438000,-295.442,0.00012582,2]
[426543144,1782575438000,-1000.0,0.00012591,2]
[426543138,1782575438000,-18006.9087592,0.00012491,2]
[426543139,1782575438000,-1124647.29542547,0.00012491,2]
[426543152,1782575438000,-300.0,0.000128,4]
[426543149,1782575438000,-152.65112834,0.00012692,2]
[426543159,1782575438000,-150.0,0.00013186,2]
[426543148,1782575438000,-202.12342155,0.00012691,3]
[426543183,1782575438000,-500.0,0.00013698,2]
[426543176,1782575438000,-500.0,0.00013698,2]
[426543178,1782575438000,-500.0,0.00013698,2]
[426543174,1782575438000,-500.0,0.00013698,2]
[426543172,1782575438000,-500.0,0.00013698,2]
[426543167,1782575438000,-500.0,0.00013698,2]
[426543169,1782575438000,-500.0,0.00013698,2]
[426543168,1782575438000,-500.0,0.00013698,2]
[426543180,1782575438000,-500.0,0.00013698,2]
[426543165,1782575438000,-159.48,0.00013585,2]
[426543161,1782575438000,-189.06,0.00013416,2]
[426543160,1782575438000,-355.42,0.00013326,2]
[426543163,1782575438000,-167.86,0.00013448,2]
[426543166,1782575438000,-255.0,0.00013589,2]
[426543162,1782575438000,-1067.71,0.00013421,2]
[426543154,1782575438000,-600.0,0.000129,4]
[426543164,1782575438000,-225.56524254,0.00013552,2]
[426543155,1782575438000,-1693.81,0.0001305,2]
[426543235,1782575439000,-500.0,0.00013698,2]
[426543230,1782575439000,-500.0,0.00013698,2]
[426543232,1782575439000,-500.0,0.00013698,2]
[426543238,1782575439000,-500.0,0.00013698,2]
[426543226,1782575439000,-500.0,0.00013698,2]
[426543231,1782575439000,-500.0,0.00013698,2]
[426543228,1782575439000,-500.0,0.00013698,2]
[426543223,1782575439000,-500.0,0.00013698,2]
[426543229,1782575439000,-500.0,0.00013698,2]
[426543233,1782575439000,-500.0,0.00013698,2]
[426543237,1782575439000,-500.0,0.00013698,2]
[426543243,1782575439000,-500.0,0.00013698,2]
[426543227,1782575439000,-500.0,0.00013698,2]
[426543239,1782575439000,-500.0,0.00013698,2]
[426543250,1782575439000,-291.52007172,0.00013698,2]
[426543240,1782575439000,-500.0,0.00013698,2]
[426543241,1782575439000,-272.07513676,0.00013698,2]
[426543242,1782575439000,-424.12596773,0.00013698,2]
[426543244,1782575439000,-500.0,0.00013698,2]
[426543246,1782575439000,-500.0,0.00013698,2]
[426543224,1782575439000,-500.0,0.00013698,2]
[426543245,1782575439000,-500.0,0.00013698,2]
[426543249,1782575439000,-207.73404402,0.00013698,2]
[426543247,1782575439000,-500.0,0.00013698,2]
[426543236,1782575439000,-500.0,0.00013698,2]
[426543219,1782575439000,-500.0,0.00013698,2]
[426543212,1782575439000,-500.0,0.00013698,2]
[426543218,1782575439000,-500.0,0.00013698,2]
[426543184,1782575439000,-500.0,0.00013698,2]
[426543191,1782575439000,-500.0,0.00013698,2]
[426543189,1782575439000,-500.0,0.00013698,2]
[426543187,1782575439000,-500.0,0.00013698,2]
[426543195,1782575439000,-500.0,0.00013698,2]
[426543193,1782575439000,-500.0,0.00013698,2]
[426543197,1782575439000,-500.0,0.00013698,2]
[426543201,1782575439000,-500.0,0.00013698,2]
[426543199,1782575439000,-500.0,0.00013698,2]
[426543205,1782575439000,-500.0,0.00013698,2]
[426543203,1782575439000,-500.0,0.00013698,2]
[426543209,1782575439000,-500.0,0.00013698,2]
[426543222,1782575439000,-500.0,0.00013698,2]
[426543210,1782575439000,-500.0,0.00013698,2]
[426543206,1782575439000,-500.0,0.00013698,2]
[426543211,1782575439000,-500.0,0.00013698,2]
[426543208,1782575439000,-423.02601729,0.00013698,2]
[426543213,1782575439000,-500.0,0.00013698,2]
[426543248,1782575439000,-500.0,0.00013698,2]
[426543215,1782575439000,-500.0,0.00013698,2]
[426543225,1782575439000,-500.0,0.00013698,2]
[426543221,1782575439000,-500.0,0.00013698,2]
[426543220,1782575439000,-500.0,0.00013698,2]
[426543214,1782575439000,-500.0,0.00013698,2]
[426543217,1782575439000,-500.0,0.00013698,2]
[426543216,1782575439000,-500.0,0.00013698,2]
[426543207,1782575439000,-500.0,0.00013698,2]
[426543253,1782575439000,-500.0,0.00013698,2]
[426543234,1782575439000,-500.0,0.00013698,2]
[426543252,1782575439000,-500.0,0.00013698,2]
[426543288,1782575439000,-900.0,0.000139,5]
[426543283,1782575439000,-500.0,0.00013698,2]
[426543286,1782575439000,-200.0,0.00013699,2]
[426543287,1782575439000,-1067.71,0.00013734,2]
[426543290,1782575439000,-10342.4498872,0.0001399,2]
[426543291,1782575439000,-250.0,0.00014,2]
[426543284,1782575439000,-500.0,0.00013698,2]
[426543289,1782575439000,-1072.57038613,0.00013989,5]
[426543293,1782575439000,-16663.14122316,0.00014384,2]
[426543292,1782575439000,-3571.69862656,0.00014294,2]
[426543294,1782575439000,-500.0,0.00014427,2]
[426543304,1782575439000,-16663.14122316,0.00016336,2]
[426543296,1782575439000,-691.17219575,0.00014942,2]
[426543297,1782575439000,-4828.71,0.0001531,2]
[426543298,1782575439000,-9544.26,0.0001531,2]
[426543299,1782575439000,-7239.55,0.0001531,2]
[426543300,1782575439000,-925.07,0.0001531,2]
[426543302,1782575439000,-300.0,0.00016,2]
[426543301,1782575439000,-3571.69862656,0.00015995,2]
[426543303,1782575439000,-736.0,0.00016087,2]
[426543308,1782575439000,-500.0,0.00016438,2]
[426543305,1782575439000,-500.0,0.00016438,2]
[426543306,1782575439000,-500.0,0.00016438,2]
[426543307,1782575439000,-500.0,0.00016438,2]
[426543251,1782575439000,-500.0,0.00013698,2]
[426543280,1782575439000,-500.0,0.00013698,2]
[426543285,1782575439000,-500.0,0.00013698,2]
[426543295,1782575439000,-433.0,0.00014788,2]
[426543279,1782575439000,-500.0,0.00013698,2]
[426543254,1782575439000,-500.0,0.00013698,2]
[426543282,1782575439000,-500.0,0.00013698,2]
[426543257,1782575439000,-500.0,0.00013698,2]
[426543256,1782575439000,-500.0,0.00013698,2]
[426543265,1782575439000,-500.0,0.00013698,2]
[426543259,1782575439000,-500.0,0.00013698,2]
[426543266,1782575439000,-500.0,0.00013698,2]
[426543263,1782575439000,-500.0,0.00013698,2]
[426543262,1782575439000,-500.0,0.00013698,2]
[426543264,1782575439000,-500.0,0.00013698,2]
[426543258,1782575439000,-500.0,0.00013698,2]
[426543261,1782575439000,-500.0,0.00013698,2]
[426543260,1782575439000,-500.0,0.00013698,2]
[426543255,1782575439000,-500.0,0.00013698,2]
[426543277,1782575439000,-500.0,0.00013698,2]
[426543281,1782575439000,-500.0,0.00013698,2]
[426543267,1782575439000,-500.0,0.00013698,2]
[426543276,1782575439000,-516.46,0.00013698,2]
[426543275,1782575439000,-500.0,0.00013698,2]
[426543269,1782575439000,-500.0,0.00013698,2]
[426543274,1782575439000,-500.0,0.00013698,2]
[426543272,1782575439000,-500.0,0.00013698,2]
[426543271,1782575439000,-500.0,0.00013698,2]
[426543270,1782575439000,-500.0,0.00013698,2]
[426543268,1782575439000,-500.0,0.00013698,2]
[426543278,1782575439000,-500.0,0.00013698,2]
[426543273,1782575439000,-500.0,0.00013698,2]
[426543349,1782575440000,-173.28503155,0.00019178,2]
[426543346,1782575440000,-144.04069585,0.00018999,2]
[426543352,1782575440000,-3571.69862656,0.00019396,2]
[426543348,1782575440000,-500.0,0.00019178,2]
[426543344,1782575440000,-500.0,0.00018999,2]
[426543334,1782575440000,-1693.81,0.0001827,2]
[426543351,1782575440000,-263.81,0.00019355,7]
[426543343,1782575440000,-108.68818197,0.00018999,2]
[426543347,1782575440000,-500.0,0.00019178,2]
[426543342,1782575440000,-391.31181803,0.00018999,2]
[426543350,1782575440000,-3004.09281809,0.00019242,2]
[426543354,1782575440000,-1622.89565419,0.0001961,2]
[426543353,1782575440000,-231.6568292,0.000194,2]
[426543371,1782575440000,-334.0,0.0002,2]
[426543363,1782575440000,-935.0,0.0001961,2]
[426543359,1782575440000,-150.0,0.0001961,2]
[426543360,1782575440000,-221.0,0.0001961,2]
[426543358,1782575440000,-405.0,0.0001961,2]
[426543361,1782575440000,-250.0,0.0001961,2]
[426543365,1782575440000,-6085.0,0.0001961,2]
[426543357,1782575440000,-1281.426,0.0001961,2]
[426543364,1782575440000,-150.758,0.0001961,2]
[426543362,1782575440000,-210.068,0.0001961,2]
[426543376,1782575440000,-325.0,0.0002,2]
[426543372,1782575440000,-162.50414315,0.0002,2]
[426543339,1782575440000,-315.91181803,0.00018999,2]
[426543355,1782575440000,-1947.54534581,0.0001961,2]
[426543340,1782575440000,-184.08818197,0.00018999,2]
[426543309,1782575440000,-500.0,0.00016438,2]
[426543338,1782575440000,-500.0,0.00018999,2]
[426543373,1782575440000,-221.0,0.0002,2]
[426543311,1782575440000,-500.0,0.00016438,2]
[426543316,1782575440000,-500.0,0.00016438,2]
[426543314,1782575440000,-500.0,0.00016438,2]
[426543310,1782575440000,-500.0,0.00016438,2]
[426543313,1782575440000,-340.30886457,0.00016438,2]
[426543312,1782575440000,-500.0,0.00016438,2]
[426543318,1782575440000,-250.0,0.00016493,2]
[426543320,1782575440000,-691.17219575,0.00017451,2]
[426543330,1782575440000,-178.5,0.00017551,2]
[426543322,1782575440000,-178.5,0.00017551,2]
[426543324,1782575440000,-178.5,0.00017551,2]
[426543341,1782575440000,-500.0,0.00018999,2]
[426543319,1782575440000,-151.0,0.0001703,2]
[426543321,1782575440000,-320.0,0.00017498,2]
[426543323,1782575440000,-178.5,0.00017551,2]
[426543326,1782575440000,-178.5,0.00017551,2]
[426543328,1782575440000,-178.5,0.00017551,2]
[426543329,1782575440000,-178.5,0.00017551,2]
[426543327,1782575440000,-178.5,0.00017551,2]
[426543325,1782575440000,-178.5,0.00017551,2]
[426543332,1782575440000,-350.0,0.00018,2]
[426543333,1782575440000,-3194.81,0.00018,2]
[426543335,1782575440000,-16663.14122316,0.00018288,2]
[426543336,1782575440000,-170.66,0.00018452,2]
[426543337,1782575440000,-463.79,0.0001866,2]
[426543331,1782575440000,-3571.69862656,0.00017695,2]
[426543367,1782575440000,-691.17219575,0.00019961,2]
[426543345,1782575440000,-355.95930415,0.00018999,2]
[426543377,1782575440000,-166.0,0.0002,2]
[426543413,1782575440000,-166.0,0.00021,2]
[426543405,1782575440000,-152.26269015,0.00020802,2]
[426543410,1782575440000,-221.0,0.00021,2]
[426543406,1782575440000,-463.79,0.00020993,2]
[426543403,1782575440000,-151.0,0.00020528,2]
[426543408,1782575440000,-299.0,0.00021,2]
[426543409,1782575440000,-334.0,0.00021,2]
[426543407,1782575440000,-215.0,0.00021,2]
[426543414,1782575440000,-152.26269015,0.00021076,2]
[426543412,1782575440000,-325.0,0.00021,2]
[426543404,1782575440000,-151.0,0.00020528,2]
[426543411,1782575440000,-153.0,0.00021,2]
[426543395,1782575440000,-151.0,0.00020528,2]
[426543415,1782575440000,-3571.69862656,0.00021097,2]
[426543425,1782575440000,-500.0,0.00021999,2]
[426543421,1782575440000,-169.400657,0.00021668,2]
[426543418,1782575440000,-152.26269015,0.0002135,2]
[426543419,1782575440000,-1994.54,0.00021578,2]
[426543420,1782575440000,-152.26269015,0.00021624,2]
[426543417,1782575440000,-5627.08,0.00021273,2]
[426543424,1782575440000,-500.0,0.00021999,2]
[426543423,1782575440000,-5000.0,0.00021918,2]
[426543422,1782575440000,-152.26269015,0.00021898,2]
[426543427,1782575440000,-215.0,0.00022,2]
[426543429,1782575440000,-299.0,0.00022,2]
[426543369,1782575440000,-400.0,0.0002,2]
[426543426,1782575440000,-500.0,0.00021999,2]
[426543396,1782575440000,-151.0,0.00020528,2]
[426543416,1782575440000,-666.32,0.00021273,2]
[426543397,1782575440000,-151.0,0.00020528,2]
[426543399,1782575440000,-151.0,0.00020528,2]
[426543370,1782575440000,-299.0,0.0002,2]
[426543368,1782575440000,-215.0,0.0002,2]
[426543366,1782575440000,-1000.0,0.00019695,2]
[426543375,1782575440000,-153.0,0.0002,2]
[426543374,1782575440000,-154.20718968,0.0002,2]
[426543385,1782575440000,-1182.8212258,0.00020528,2]
[426543387,1782575440000,-151.0,0.00020528,2]
[426543378,1782575440000,-1791.33043667,0.0002,2]
[426543380,1782575440000,-16663.14122316,0.0002024,2]
[426543388,1782575440000,-151.0,0.00020528,2]
[426543383,1782575440000,-151.0,0.00020528,2]
[426543381,1782575440000,-159.48,0.00020377,2]
[426543379,1782575440000,-829.90956333,0.0002,2]
[426543389,1782575440000,-151.0,0.00020528,2]
[426543386,1782575440000,-152.26269015,0.00020528,2]
[426543401,1782575440000,-151.0,0.00020528,2]
[426543400,1782575440000,-151.0,0.00020528,2]
[426543393,1782575440000,-151.0,0.00020528,2]
[426543402,1782575440000,-151.0,0.00020528,2]
[426543428,1782575440000,-450.0,0.00022,2]
[426543390,1782575440000,-151.0,0.00020528,2]
[426543398,1782575440000,-151.0,0.00020528,2]
[426543394,1782575440000,-151.0,0.00020528,2]
[426543392,1782575440000,-151.0,0.00020528,2]
[426543382,1782575440000,-174.13974192,0.00020528,2]
[426543384,1782575440000,-151.0,0.00020528,2]
[426543391,1782575440000,-151.0,0.00020528,2]
[426543479,1782575441000,-500.0,0.00023043,2]
[426543475,1782575441000,-325.0,0.00023,2]
[426543478,1782575441000,-3467.88022334,0.00023029,2]
[426543476,1782575441000,-166.0,0.00023,2]
[426543473,1782575441000,-334.0,0.00023,2]
[426543474,1782575441000,-221.0,0.00023,2]
[426543482,1782575441000,-3467.88022334,0.00023119,2]
[426543481,1782575441000,-170.66,0.00023065,2]
[426543471,1782575441000,-215.0,0.00023,2]
[426543464,1782575441000,-3467.88022334,0.00022922,2]
[426543469,1782575441000,-3467.88022334,0.00022995,2]
[426543456,1782575441000,-3571.69862656,0.00022798,2]
[426543472,1782575441000,-299.0,0.00023,2]